[Event "Live Chess"]
[Site "Chess.com"]
[Date "2010.12.06"]
[Round "-"]
[White "miudyk"]
[Black "hipposcottimus"]
[Result "1-0"]
[CurrentPosition "5rk1/6QR/2Pr3p/1P6/7P/5pP1/5P2/6K1 b - -"]
[Timezone "UTC"]
[ECO "C55"]
[ECOUrl "https://www.chess.com/openings/Italian-Game-Two-Knights-Modern-Bishops-Opening-4...d5-5.exd5"]
[UTCDate "2010.12.06"]
[UTCTime "22:24:20"]
[WhiteElo "1639"]
[BlackElo "1615"]
[TimeControl "60"]
[Termination "miudyk won by checkmate"]
[StartTime "22:24:20"]
[EndDate "2010.12.06"]
[EndTime "22:26:11"]
[Link "https://www.chess.com/game/live/74732388"]

1. e4 {[%clk 0:01:00]} 1... e5 {[%clk 0:01:00]} 2. Nf3 {[%clk 0:00:59.7]} 2... Nc6 {[%clk 0:00:59.7]} 3. Bc4 {[%clk 0:00:58.8]} 3... Nf6 {[%clk 0:00:59]} 4. d3 {[%clk 0:00:58.5]} 4... d5 {[%clk 0:00:58.1]} 5. exd5 {[%clk 0:00:56.9]} 5... Na5 {[%clk 0:00:57.7]} 6. Bb3 {[%clk 0:00:55.5]} 6... Nxb3 {[%clk 0:00:56.4]} 7. axb3 {[%clk 0:00:55.1]} 7... Nxd5 {[%clk 0:00:56.1]} 8. O-O {[%clk 0:00:54.2]} 8... Bd6 {[%clk 0:00:55.7]} 9. h3 {[%clk 0:00:53.6]} 9... Ne7 {[%clk 0:00:54.9]} 10. Bg5 {[%clk 0:00:52.5]} 10... f6 {[%clk 0:00:53.5]} 11. Be3 {[%clk 0:00:52.1]} 11... O-O {[%clk 0:00:52.9]} 12. Nbd2 {[%clk 0:00:51.6]} 12... f5 {[%clk 0:00:52.5]} 13. c3 {[%clk 0:00:50.4]} 13... f4 {[%clk 0:00:52.3]} 14. Bxf4 {[%clk 0:00:48.4]} 14... exf4 {[%clk 0:00:50]} 15. b4 {[%clk 0:00:48]} 15... Ng6 {[%clk 0:00:49.6]} 16. Qb3+ {[%clk 0:00:46.7]} 16... Kh8 {[%clk 0:00:47.3]} 17. c4 {[%clk 0:00:46]} 17... Qf6 {[%clk 0:00:45.6]} 18. c5 {[%clk 0:00:44.8]} 18... Be6 {[%clk 0:00:44.4]} 19. Qc2 {[%clk 0:00:43]} 19... Be5 {[%clk 0:00:41.3]} 20. Nb3 {[%clk 0:00:42]} 20... Bxb2 {[%clk 0:00:40.1]} 21. Rae1 {[%clk 0:00:39.1]} 21... Be5 {[%clk 0:00:37.4]} 22. d4 {[%clk 0:00:37.1]} 22... Bxb3 {[%clk 0:00:34.2]} 23. Qxb3 {[%clk 0:00:35.8]} 23... Bxd4 {[%clk 0:00:33.5]} 24. Nxd4 {[%clk 0:00:35.1]} 24... Qxd4 {[%clk 0:00:32.9]} 25. Rd1 {[%clk 0:00:34.6]} 25... Qf6 {[%clk 0:00:29.9]} 26. Qf3 {[%clk 0:00:32.6]} 26... Qg5 {[%clk 0:00:29.3]} 27. Rd5 {[%clk 0:00:29.4]} 27... Rae8 {[%clk 0:00:28.9]} 28. Rxg5 {[%clk 0:00:28.3]} 28... Ne5 {[%clk 0:00:28.1]} 29. Rxe5 {[%clk 0:00:27.2]} 29... Rxe5 {[%clk 0:00:26.8]} 30. Qxb7 {[%clk 0:00:26.8]} 30... Rg5 {[%clk 0:00:26.3]} 31. Qxc7 {[%clk 0:00:25.9]} 31... f3 {[%clk 0:00:26]} 32. g3 {[%clk 0:00:25.2]} 32... Rg6 {[%clk 0:00:24.2]} 33. h4 {[%clk 0:00:24.6]} 33... Rg8 {[%clk 0:00:23.9]} 34. Re1 {[%clk 0:00:23.8]} 34... h6 {[%clk 0:00:23.4]} 35. Qxa7 {[%clk 0:00:23.1]} 35... Kh7 {[%clk 0:00:22.3]} 36. Re7 {[%clk 0:00:22.1]} 36... Rf8 {[%clk 0:00:20.6]} 37. b5 {[%clk 0:00:20.9]} 37... Rgf6 {[%clk 0:00:18.7]} 38. c6 {[%clk 0:00:20]} 38... Rd6 {[%clk 0:00:17.1]} 39. Rxg7+ {[%clk 0:00:19.2]} 39... Kh8 {[%clk 0:00:15.2]} 40. Rh7+ {[%clk 0:00:18.9]} 40... Kg8 {[%clk 0:00:11.7]} 41. Qg7# {[%clk 0:00:18.3]} 1-0

[Event "Live Chess"]
[Site "Chess.com"]
[Date "2010.12.06"]
[Round "-"]
[White "hipposcottimus"]
[Black "miudyk"]
[Result "1-0"]
[CurrentPosition "7r/3b3Q/4k1p1/p3q3/1p3n2/1P6/5P1P/R5RK b - -"]
[Timezone "UTC"]
[ECO "B20"]
[ECOUrl "https://www.chess.com/openings/Sicilian-Defense"]
[UTCDate "2010.12.06"]
[UTCTime "22:21:55"]
[WhiteElo "1623"]
[BlackElo "1631"]
[TimeControl "60"]
[Termination "hipposcottimus won on time"]
[StartTime "22:21:55"]
[EndDate "2010.12.06"]
[EndTime "22:23:56"]
[Link "https://www.chess.com/game/live/74731723"]

1. e4 {[%clk 0:01:00]} 1... c5 {[%clk 0:01:00]} 2. Bb5 {[%clk 0:00:58.4]} 2... a6 {[%clk 0:00:58.6]} 3. Be2 {[%clk 0:00:58]} 3... Nc6 {[%clk 0:00:58]} 4. Nf3 {[%clk 0:00:57.8]} 4... b5 {[%clk 0:00:57.2]} 5. c4 {[%clk 0:00:57.5]} 5... b4 {[%clk 0:00:53.3]} 6. a3 {[%clk 0:00:54.1]} 6... a5 {[%clk 0:00:52.8]} 7. axb4 {[%clk 0:00:52.7]} 7... cxb4 {[%clk 0:00:52.1]} 8. b3 {[%clk 0:00:50.2]} 8... d6 {[%clk 0:00:50.6]} 9. d4 {[%clk 0:00:47.8]} 9... e6 {[%clk 0:00:46.9]} 10. d5 {[%clk 0:00:47.1]} 10... exd5 {[%clk 0:00:45.9]} 11. cxd5 {[%clk 0:00:46.8]} 11... Nce7 {[%clk 0:00:43.8]} 12. Bb5+ {[%clk 0:00:46.4]} 12... Bd7 {[%clk 0:00:42.3]} 13. Bc4 {[%clk 0:00:46.1]} 13... g6 {[%clk 0:00:40.9]} 14. O-O {[%clk 0:00:45.8]} 14... Nf6 {[%clk 0:00:39.3]} 15. Bg5 {[%clk 0:00:45.5]} 15... Bg7 {[%clk 0:00:38.2]} 16. e5 {[%clk 0:00:43.5]} 16... dxe5 {[%clk 0:00:36.6]} 17. d6 {[%clk 0:00:43.3]} 17... Nc6 {[%clk 0:00:35]} 18. Qd5 {[%clk 0:00:41]} 18... O-O {[%clk 0:00:30.2]} 19. Nxe5 {[%clk 0:00:38.7]} 19... Nxe5 {[%clk 0:00:28.7]} 20. Qxe5 {[%clk 0:00:38.2]} 20... Nh5 {[%clk 0:00:24]} 21. Qf4 {[%clk 0:00:36.1]} 21... Qb6 {[%clk 0:00:21.5]} 22. Qh4 {[%clk 0:00:33.8]} 22... h6 {[%clk 0:00:19.4]} 23. Be3 {[%clk 0:00:30.9]} 23... Qxd6 {[%clk 0:00:17.1]} 24. Bxf7+ {[%clk 0:00:30.6]} 24... Rxf7 {[%clk 0:00:16]} 25. Nd2 {[%clk 0:00:27.5]} 25... Nf4 {[%clk 0:00:13.4]} 26. Nf3 {[%clk 0:00:26.2]} 26... Nxg2 {[%clk 0:00:11.4]} 27. Bxh6 {[%clk 0:00:23.7]} 27... Bxh6 {[%clk 0:00:09.7]} 28. Qxh6 {[%clk 0:00:23]} 28... Nf4 {[%clk 0:00:08.1]} 29. Ng5 {[%clk 0:00:19.5]} 29... Qe5 {[%clk 0:00:04.7]} 30. Nxf7 {[%clk 0:00:17.4]} 30... Kxf7 {[%clk 0:00:03.6]} 31. Qh7+ {[%clk 0:00:16.5]} 31... Ke6 {[%clk 0:00:02.2]} 32. Kh1 {[%clk 0:00:15.9]} 32... Rh8 {[%clk 0:00:00.7]} 33. Rg1 {[%clk 0:00:15.5]} 1-0

[Event "Live Chess"]
[Site "Chess.com"]
[Date "2010.12.06"]
[Round "-"]
[White "miudyk"]
[Black "hipposcottimus"]
[Result "0-1"]
[CurrentPosition "8/5q2/6k1/4K3/8/8/7p/8 w - -"]
[Timezone "UTC"]
[ECO "C65"]
[ECOUrl "https://www.chess.com/openings/Ruy-Lopez-Opening-Berlin-Defense-4.Bxc6-dxc6-5.d3"]
[UTCDate "2010.12.06"]
[UTCTime "22:19:11"]
[WhiteElo "1640"]
[BlackElo "1614"]
[TimeControl "60"]
[Termination "hipposcottimus won on time"]
[StartTime "22:19:11"]
[EndDate "2010.12.06"]
[EndTime "22:21:35"]
[Link "https://www.chess.com/game/live/74731011"]

1. e4 {[%clk 0:01:00]} 1... e5 {[%clk 0:01:00]} 2. Nf3 {[%clk 0:00:59.3]} 2... Nc6 {[%clk 0:00:59.7]} 3. Bb5 {[%clk 0:00:58.5]} 3... Nf6 {[%clk 0:00:59.1]} 4. Bxc6 {[%clk 0:00:58.1]} 4... dxc6 {[%clk 0:00:58.5]} 5. d3 {[%clk 0:00:57.8]} 5... Bd6 {[%clk 0:00:56.6]} 6. h3 {[%clk 0:00:56.6]} 6... c5 {[%clk 0:00:56.3]} 7. O-O {[%clk 0:00:55.8]} 7... b6 {[%clk 0:00:56.1]} 8. c4 {[%clk 0:00:54.9]} 8... Bb7 {[%clk 0:00:55.8]} 9. b3 {[%clk 0:00:53.9]} 9... O-O {[%clk 0:00:55.6]} 10. a4 {[%clk 0:00:53.1]} 10... Nh5 {[%clk 0:00:55.3]} 11. Bd2 {[%clk 0:00:51]} 11... Nf4 {[%clk 0:00:55]} 12. a5 {[%clk 0:00:48.5]} 12... Nxd3 {[%clk 0:00:49.7]} 13. a6 {[%clk 0:00:46.3]} 13... Bxe4 {[%clk 0:00:41.4]} 14. Bg5 {[%clk 0:00:43.4]} 14... Bg6 {[%clk 0:00:40.3]} 15. Bxd8 {[%clk 0:00:41.6]} 15... Rfxd8 {[%clk 0:00:40]} 16. Ne1 {[%clk 0:00:39.5]} 16... Nb2 {[%clk 0:00:39.7]} 17. Ra2 {[%clk 0:00:38.1]} 17... Nxd1 {[%clk 0:00:38.8]} 18. Nf3 {[%clk 0:00:36.8]} 18... e4 {[%clk 0:00:33.6]} 19. Rxd1 {[%clk 0:00:35.6]} 19... exf3 {[%clk 0:00:32.2]} 20. gxf3 {[%clk 0:00:35]} 20... Bh2+ {[%clk 0:00:31.2]} 21. Kxh2 {[%clk 0:00:34]} 21... Rxd1 {[%clk 0:00:30.8]} 22. Nc3 {[%clk 0:00:32.6]} 22... Rd3 {[%clk 0:00:29.6]} 23. Ne4 {[%clk 0:00:31.6]} 23... Rxf3 {[%clk 0:00:29]} 24. Ng5 {[%clk 0:00:28.8]} 24... Rxf2+ {[%clk 0:00:28]} 25. Rxf2 {[%clk 0:00:27.4]} 25... f6 {[%clk 0:00:27.6]} 26. Nf3 {[%clk 0:00:25.2]} 26... Rd8 {[%clk 0:00:27.3]} 27. Rd2 {[%clk 0:00:23.7]} 27... Rxd2+ {[%clk 0:00:26.2]} 28. Nxd2 {[%clk 0:00:23.3]} 28... Bf5 {[%clk 0:00:24]} 29. Kg3 {[%clk 0:00:22.9]} 29... Bc2 {[%clk 0:00:23.4]} 30. h4 {[%clk 0:00:21.6]} 30... b5 {[%clk 0:00:22.6]} 31. cxb5 {[%clk 0:00:19.8]} 31... Bd3 {[%clk 0:00:22.3]} 32. b6 {[%clk 0:00:18.6]} 32... cxb6 {[%clk 0:00:20.5]} 33. Nc4 {[%clk 0:00:16.6]} 33... Bxc4 {[%clk 0:00:18.5]} 34. bxc4 {[%clk 0:00:15.9]} 34... g6 {[%clk 0:00:18.1]} 35. Kf4 {[%clk 0:00:15.4]} 35... Kf7 {[%clk 0:00:17.7]} 36. Ke4 {[%clk 0:00:14.8]} 36... f5+ {[%clk 0:00:16.1]} 37. Ke5 {[%clk 0:00:14.1]} 37... Kg7 {[%clk 0:00:15.7]} 38. Kd6 {[%clk 0:00:13.5]} 38... h6 {[%clk 0:00:15.4]} 39. Kc7 {[%clk 0:00:13.1]} 39... b5 {[%clk 0:00:12.9]} 40. Kb7 {[%clk 0:00:12.2]} 40... b4 {[%clk 0:00:12.5]} 41. Kxa7 {[%clk 0:00:11.7]} 41... b3 {[%clk 0:00:12.2]} 42. Kb8 {[%clk 0:00:11.1]} 42... b2 {[%clk 0:00:11.9]} 43. a7 {[%clk 0:00:10.6]} 43... b1=Q+ {[%clk 0:00:10.6]} 44. Ka8 {[%clk 0:00:09.3]} 44... Qa1 {[%clk 0:00:10.1]} 45. h5 {[%clk 0:00:08.4]} 45... f4 {[%clk 0:00:09.6]} 46. Kb8 {[%clk 0:00:07.2]} 46... f3 {[%clk 0:00:09.2]} 47. hxg6 {[%clk 0:00:06.4]} 47... Qxa7+ {[%clk 0:00:08]} 48. Kxa7 {[%clk 0:00:05.4]} 48... Kxg6 {[%clk 0:00:07.8]} 49. Kb7 {[%clk 0:00:04.8]} 49... f2 {[%clk 0:00:07.5]} 50. Kc6 {[%clk 0:00:04.2]} 50... f1=Q {[%clk 0:00:06.6]} 51. Kd6 {[%clk 0:00:03.6]} 51... Qxc4 {[%clk 0:00:06]} 52. Ke7 {[%clk 0:00:02.9]} 52... Qf7+ {[%clk 0:00:05]} 53. Kd6 {[%clk 0:00:02.2]} 53... h5 {[%clk 0:00:04.7]} 54. Kxc5 {[%clk 0:00:01.3]} 54... h4 {[%clk 0:00:04.5]} 55. Kd4 {[%clk 0:00:00.7]} 55... h3 {[%clk 0:00:04.2]} 56. Ke5 {[%clk 0:00:00.3]} 56... h2 {[%clk 0:00:03.8]} 0-1

[Event "Live Chess"]
[Site "Chess.com"]
[Date "2010.12.06"]
[Round "-"]
[White "hipposcottimus"]
[Black "miudyk"]
[Result "0-1"]
[CurrentPosition "2R5/7p/6p1/8/8/2pk3P/6r1/1K6 w - -"]
[Timezone "UTC"]
[ECO "B20"]
[ECOUrl "https://www.chess.com/openings/Sicilian-Defense"]
[UTCDate "2010.12.06"]
[UTCTime "22:16:13"]
[WhiteElo "1605"]
[BlackElo "1649"]
[TimeControl "60"]
[Termination "miudyk won on time"]
[StartTime "22:16:13"]
[EndDate "2010.12.06"]
[EndTime "22:18:35"]
[Link "https://www.chess.com/game/live/74730233"]

1. e4 {[%clk 0:01:00]} 1... c5 {[%clk 0:01:00]} 2. Bb5 {[%clk 0:00:58.1]} 2... a6 {[%clk 0:00:57.5]} 3. Be2 {[%clk 0:00:57.8]} 3... d6 {[%clk 0:00:56.4]} 4. Nf3 {[%clk 0:00:57.5]} 4... Nc6 {[%clk 0:00:55.9]} 5. c4 {[%clk 0:00:56.8]} 5... g6 {[%clk 0:00:55.2]} 6. d3 {[%clk 0:00:56.3]} 6... Bg7 {[%clk 0:00:54.4]} 7. Nc3 {[%clk 0:00:56]} 7... Nf6 {[%clk 0:00:52.9]} 8. Bg5 {[%clk 0:00:53.9]} 8... Bg4 {[%clk 0:00:51.6]} 9. e5 {[%clk 0:00:51.9]} 9... dxe5 {[%clk 0:00:50.5]} 10. Bxf6 {[%clk 0:00:48.1]} 10... Bxf6 {[%clk 0:00:49.2]} 11. Nxe5 {[%clk 0:00:45.1]} 11... Nxe5 {[%clk 0:00:47]} 12. Bxg4 {[%clk 0:00:44.4]} 12... Nxg4 {[%clk 0:00:45.7]} 13. Qxg4 {[%clk 0:00:43.2]} 13... O-O {[%clk 0:00:44.4]} 14. O-O {[%clk 0:00:41.6]} 14... Qc8 {[%clk 0:00:43.7]} 15. Qg3 {[%clk 0:00:39.5]} 15... Qb8 {[%clk 0:00:39.3]} 16. Qg4 {[%clk 0:00:37.4]} 16... Be5 {[%clk 0:00:37.8]} 17. f4 {[%clk 0:00:35.9]} 17... Bxc3 {[%clk 0:00:35.9]} 18. bxc3 {[%clk 0:00:34.3]} 18... Qd6 {[%clk 0:00:35.5]} 19. f5 {[%clk 0:00:33.6]} 19... Qxd3 {[%clk 0:00:33.9]} 20. fxg6 {[%clk 0:00:32.7]} 20... Qe3+ {[%clk 0:00:32.9]} 21. Kh1 {[%clk 0:00:31.4]} 21... fxg6 {[%clk 0:00:32.1]} 22. Rae1 {[%clk 0:00:25.5]} 22... Qxc3 {[%clk 0:00:31]} 23. Qe6+ {[%clk 0:00:24.3]} 23... Kh8 {[%clk 0:00:28.5]} 24. Rxf8+ {[%clk 0:00:23.9]} 24... Rxf8 {[%clk 0:00:26.9]} 25. Qxe7 {[%clk 0:00:23.5]} 25... Qg7 {[%clk 0:00:18.2]} 26. h3 {[%clk 0:00:15.8]} 26... Qxe7 {[%clk 0:00:16.5]} 27. Rxe7 {[%clk 0:00:15.6]} 27... Rf2 {[%clk 0:00:15.1]} 28. Kh2 {[%clk 0:00:15.3]} 28... Rxa2 {[%clk 0:00:14.5]} 29. Rxb7 {[%clk 0:00:14.8]} 29... Rc2 {[%clk 0:00:14]} 30. Rb6 {[%clk 0:00:13.8]} 30... Rxc4 {[%clk 0:00:13.4]} 31. Rxa6 {[%clk 0:00:13.5]} 31... Rd4 {[%clk 0:00:12.4]} 32. Rc6 {[%clk 0:00:13]} 32... c4 {[%clk 0:00:11.9]} 33. Rc7 {[%clk 0:00:12.1]} 33... Kg8 {[%clk 0:00:11.1]} 34. Rc8+ {[%clk 0:00:11.1]} 34... Kf7 {[%clk 0:00:09.9]} 35. Kg3 {[%clk 0:00:10.7]} 35... Ke6 {[%clk 0:00:09]} 36. Kf3 {[%clk 0:00:10.4]} 36... Kd5 {[%clk 0:00:07.8]} 37. Ke3 {[%clk 0:00:10]} 37... Re4+ {[%clk 0:00:07.3]} 38. Kd2 {[%clk 0:00:08.7]} 38... Kd4 {[%clk 0:00:06.7]} 39. Kc2 {[%clk 0:00:07.2]} 39... Re2+ {[%clk 0:00:04.4]} 40. Kd1 {[%clk 0:00:06.2]} 40... Kd3 {[%clk 0:00:04]} 41. Kc1 {[%clk 0:00:04.6]} 41... Kc3 {[%clk 0:00:02.4]} 42. Kd1 {[%clk 0:00:03.3]} 42... Kd3 {[%clk 0:00:01.1]} 43. Kc1 {[%clk 0:00:02.1]} 43... c3 {[%clk 0:00:00.9]} 44. Kb1 {[%clk 0:00:00.2]} 44... Rxg2 {[%clk 0:00:00.5]} 0-1

[Event "Live Chess"]
[Site "Chess.com"]
[Date "2010.12.06"]
[Round "-"]
[White "wayne_simpson"]
[Black "hipposcottimus"]
[Result "0-1"]
[CurrentPosition "r5k1/pp3ppp/8/3p4/6q1/2Q5/PP3n1P/R1B4K w - -"]
[Timezone "UTC"]
[ECO "D11"]
[ECOUrl "https://www.chess.com/openings/Slav-Defense-Modern-Line"]
[UTCDate "2010.12.06"]
[UTCTime "22:14:25"]
[WhiteElo "1396"]
[BlackElo "1612"]
[TimeControl "60"]
[Termination "hipposcottimus won by checkmate"]
[StartTime "22:14:25"]
[EndDate "2010.12.06"]
[EndTime "22:15:33"]
[Link "https://www.chess.com/game/live/74729779"]

1. d4 {[%clk 0:01:00]} 1... d5 {[%clk 0:01:00]} 2. c4 {[%clk 0:00:59.6]} 2... c6 {[%clk 0:00:59.7]} 3. Nf3 {[%clk 0:00:57.9]} 3... Nd7 {[%clk 0:00:58.3]} 4. e3 {[%clk 0:00:57.5]} 4... e6 {[%clk 0:00:57.7]} 5. Nbd2 {[%clk 0:00:56.9]} 5... Ngf6 {[%clk 0:00:57.4]} 6. Be2 {[%clk 0:00:55.6]} 6... Bb4 {[%clk 0:00:56.9]} 7. O-O {[%clk 0:00:55.1]} 7... Bxd2 {[%clk 0:00:55.8]} 8. Qxd2 {[%clk 0:00:54]} 8... O-O {[%clk 0:00:55.5]} 9. Qc3 {[%clk 0:00:53.3]} 9... Re8 {[%clk 0:00:54.7]} 10. Qc2 {[%clk 0:00:52.3]} 10... e5 {[%clk 0:00:53.9]} 11. cxd5 {[%clk 0:00:50.5]} 11... cxd5 {[%clk 0:00:50.3]} 12. dxe5 {[%clk 0:00:49.8]} 12... Nxe5 {[%clk 0:00:49.1]} 13. Nxe5 {[%clk 0:00:47.9]} 13... Rxe5 {[%clk 0:00:48.8]} 14. Bd3 {[%clk 0:00:47.4]} 14... Re8 {[%clk 0:00:45.1]} 15. g4 {[%clk 0:00:46.7]} 15... Bxg4 {[%clk 0:00:42.2]} 16. Kh1 {[%clk 0:00:44]} 16... Bf3+ {[%clk 0:00:40.9]} 17. Kg1 {[%clk 0:00:42.4]} 17... Be4 {[%clk 0:00:40.6]} 18. Bxe4 {[%clk 0:00:40.9]} 18... Rxe4 {[%clk 0:00:39.9]} 19. Kh1 {[%clk 0:00:39.6]} 19... Rg4 {[%clk 0:00:39.5]} 20. Rg1 {[%clk 0:00:39]} 20... Rxg1+ {[%clk 0:00:38.2]} 21. Kxg1 {[%clk 0:00:38.4]} 21... Qd7 {[%clk 0:00:37.8]} 22. e4 {[%clk 0:00:37.8]} 22... Qg4+ {[%clk 0:00:36.7]} 23. Kh1 {[%clk 0:00:36.5]} 23... Nxe4 {[%clk 0:00:35.7]} 24. Qc3 {[%clk 0:00:31.4]} 24... Nxf2# {[%clk 0:00:33.4]} 0-1

[Event "Live Chess"]
[Site "Chess.com"]
[Date "2010.12.06"]
[Round "-"]
[White "hipposcottimus"]
[Black "Maddy1234"]
[Result "1-0"]
[CurrentPosition "r6r/3pk1p1/1Q2p3/2p1n1p1/3n4/8/PPP2PPP/3R1K2 b - -"]
[Timezone "UTC"]
[ECO "C40"]
[ECOUrl "https://www.chess.com/openings/Kings-Pawn-Opening-Kings-Knight-McConnell-Defense"]
[UTCDate "2010.12.06"]
[UTCTime "22:12:05"]
[WhiteElo "1608"]
[BlackElo "1356"]
[TimeControl "60"]
[Termination "hipposcottimus won on time"]
[StartTime "22:12:05"]
[EndDate "2010.12.06"]
[EndTime "22:13:58"]
[Link "https://www.chess.com/game/live/74729169"]

1. e4 {[%clk 0:01:00]} 1... e5 {[%clk 0:01:00]} 2. Nf3 {[%clk 0:00:59.6]} 2... Qf6 {[%clk 0:00:58.8]} 3. Nc3 {[%clk 0:00:57.7]} 3... c6 {[%clk 0:00:57.7]} 4. d4 {[%clk 0:00:56.4]} 4... exd4 {[%clk 0:00:55.4]} 5. e5 {[%clk 0:00:56]} 5... Qg6 {[%clk 0:00:47.4]} 6. Qxd4 {[%clk 0:00:51.5]} 6... c5 {[%clk 0:00:46]} 7. Qd3 {[%clk 0:00:48.9]} 7... Qe6 {[%clk 0:00:42.4]} 8. Be2 {[%clk 0:00:46]} 8... b6 {[%clk 0:00:41.3]} 9. O-O {[%clk 0:00:44.7]} 9... Ba6 {[%clk 0:00:40.1]} 10. Nb5 {[%clk 0:00:42.7]} 10... Nc6 {[%clk 0:00:35.6]} 11. Nd6+ {[%clk 0:00:40.9]} 11... Bxd6 {[%clk 0:00:33.7]} 12. Qxd6 {[%clk 0:00:39.8]} 12... Bxe2 {[%clk 0:00:28.5]} 13. Ng5 {[%clk 0:00:38.8]} 13... Bxf1 {[%clk 0:00:26.7]} 14. Nxe6 {[%clk 0:00:35.4]} 14... fxe6 {[%clk 0:00:24.8]} 15. Kxf1 {[%clk 0:00:33.6]} 15... Nh6 {[%clk 0:00:22]} 16. Bg5 {[%clk 0:00:32.8]} 16... Nf5 {[%clk 0:00:20.1]} 17. Qc7 {[%clk 0:00:30.1]} 17... h6 {[%clk 0:00:14.1]} 18. Qb7 {[%clk 0:00:27.5]} 18... Rb8 {[%clk 0:00:11.8]} 19. Qa6 {[%clk 0:00:25.8]} 19... hxg5 {[%clk 0:00:10]} 20. Rd1 {[%clk 0:00:25.3]} 20... Nxe5 {[%clk 0:00:07.8]} 21. Qxa7 {[%clk 0:00:23]} 21... Ke7 {[%clk 0:00:05.9]} 22. Qa3 {[%clk 0:00:19.5]} 22... Ra8 {[%clk 0:00:04.5]} 23. Qb3 {[%clk 0:00:18.3]} 23... Nd4 {[%clk 0:00:01.9]} 24. Qxb6 {[%clk 0:00:16.9]} 1-0

[Event "Live Chess"]
[Site "Chess.com"]
[Date "2010.12.06"]
[Round "-"]
[White "Maddy1234"]
[Black "hipposcottimus"]
[Result "0-1"]
[CurrentPosition "2krr3/ppp4p/6pB/3ppq2/3P1P1P/N6N/PP6/4RKR1 w - -"]
[Timezone "UTC"]
[ECO "C20"]
[ECOUrl "https://www.chess.com/openings/Kings-Pawn-Opening-Wayward-Queen-Kiddie-Countergambit"]
[UTCDate "2010.12.06"]
[UTCTime "22:09:20"]
[WhiteElo "1359"]
[BlackElo "1605"]
[TimeControl "60"]
[Termination "hipposcottimus won on time"]
[StartTime "22:09:20"]
[EndDate "2010.12.06"]
[EndTime "22:11:30"]
[Link "https://www.chess.com/game/live/74728533"]

1. e4 {[%clk 0:01:00]} 1... e5 {[%clk 0:01:00]} 2. Qh5 {[%clk 0:00:58.5]} 2... Nf6 {[%clk 0:00:58.2]} 3. Qxe5+ {[%clk 0:00:56.3]} 3... Be7 {[%clk 0:00:57.9]} 4. Qg5 {[%clk 0:00:54.4]} 4... d5 {[%clk 0:00:57.5]} 5. e5 {[%clk 0:00:52.8]} 5... Nh5 {[%clk 0:00:39.9]} 6. Qxh5 {[%clk 0:00:49.5]} 6... Bg5 {[%clk 0:00:39.2]} 7. h4 {[%clk 0:00:45.1]} 7... Bh6 {[%clk 0:00:37.5]} 8. g4 {[%clk 0:00:43]} 8... g6 {[%clk 0:00:35.7]} 9. Qxh6 {[%clk 0:00:41.4]} 9... Bxg4 {[%clk 0:00:32.5]} 10. d3 {[%clk 0:00:38]} 10... Nc6 {[%clk 0:00:31.7]} 11. Bg5 {[%clk 0:00:36]} 11... Qd7 {[%clk 0:00:30.4]} 12. Qg7 {[%clk 0:00:34.6]} 12... Rf8 {[%clk 0:00:26]} 13. Bh6 {[%clk 0:00:32.9]} 13... O-O-O {[%clk 0:00:22.9]} 14. Qf6 {[%clk 0:00:29]} 14... Nd4 {[%clk 0:00:16.5]} 15. Na3 {[%clk 0:00:23.5]} 15... Rfe8 {[%clk 0:00:14.5]} 16. f4 {[%clk 0:00:20.3]} 16... Qe6 {[%clk 0:00:13.3]} 17. c3 {[%clk 0:00:18.1]} 17... Qxf6 {[%clk 0:00:12.1]} 18. cxd4 {[%clk 0:00:14.8]} 18... Qf5 {[%clk 0:00:10.9]} 19. Bh3 {[%clk 0:00:09.8]} 19... Bxh3 {[%clk 0:00:09.8]} 20. Nxh3 {[%clk 0:00:08.8]} 20... Qxd3 {[%clk 0:00:09.4]} 21. Rd1 {[%clk 0:00:06]} 21... Qe4+ {[%clk 0:00:08.1]} 22. Kf1 {[%clk 0:00:03.1]} 22... f6 {[%clk 0:00:07.6]} 23. Rg1 {[%clk 0:00:01.4]} 23... fxe5 {[%clk 0:00:05.2]} 24. Re1 {[%clk 0:00:00.3]} 24... Qf5 {[%clk 0:00:02.6]} 0-1

[Event "Live Chess"]
[Site "Chess.com"]
[Date "2010.12.06"]
[Round "-"]
[White "caturku1"]
[Black "hipposcottimus"]
[Result "0-1"]
[CurrentPosition "4rr1k/p2R2pp/2p5/n6b/B1p2p2/2P2P2/PBP3PP/4R1K1 w - -"]
[Timezone "UTC"]
[ECO "C47"]
[ECOUrl "https://www.chess.com/openings/Four-Knights-Game-Scotch-Variation"]
[UTCDate "2010.12.06"]
[UTCTime "22:07:25"]
[WhiteElo "1483"]
[BlackElo "1602"]
[TimeControl "60"]
[Termination "hipposcottimus won on time"]
[StartTime "22:07:25"]
[EndDate "2010.12.06"]
[EndTime "22:09:11"]
[Link "https://www.chess.com/game/live/74727854"]

1. e4 {[%clk 0:01:00]} 1... e5 {[%clk 0:01:00]} 2. Nf3 {[%clk 0:00:59]} 2... Nc6 {[%clk 0:00:59.8]} 3. Nc3 {[%clk 0:00:58.1]} 3... Nf6 {[%clk 0:00:59.5]} 4. d4 {[%clk 0:00:57.5]} 4... d5 {[%clk 0:00:59]} 5. exd5 {[%clk 0:00:55.3]} 5... e4 {[%clk 0:00:58.7]} 6. Ng5 {[%clk 0:00:53.7]} 6... Nxd5 {[%clk 0:00:53.7]} 7. Ngxe4 {[%clk 0:00:49.8]} 7... Qe7 {[%clk 0:00:50.5]} 8. Qe2 {[%clk 0:00:46.3]} 8... f5 {[%clk 0:00:49.3]} 9. Nc5 {[%clk 0:00:42.8]} 9... Qxe2+ {[%clk 0:00:44.4]} 10. Bxe2 {[%clk 0:00:38.8]} 10... Nxc3 {[%clk 0:00:44.1]} 11. bxc3 {[%clk 0:00:37.5]} 11... Bxc5 {[%clk 0:00:41.8]} 12. dxc5 {[%clk 0:00:36.2]} 12... O-O {[%clk 0:00:41.5]} 13. O-O {[%clk 0:00:30.2]} 13... f4 {[%clk 0:00:41.1]} 14. Bc4+ {[%clk 0:00:30.2]} 14... Kh8 {[%clk 0:00:39.7]} 15. Bb2 {[%clk 0:00:24.6]} 15... Bg4 {[%clk 0:00:39.3]} 16. f3 {[%clk 0:00:21.9]} 16... Na5 {[%clk 0:00:37.5]} 17. Bd5 {[%clk 0:00:18.8]} 17... c6 {[%clk 0:00:36.4]} 18. Bb3 {[%clk 0:00:14.9]} 18... Bh5 {[%clk 0:00:34.8]} 19. Rad1 {[%clk 0:00:10.7]} 19... b6 {[%clk 0:00:34]} 20. Rd7 {[%clk 0:00:09.9]} 20... bxc5 {[%clk 0:00:30.7]} 21. Re1 {[%clk 0:00:04]} 21... c4 {[%clk 0:00:29.4]} 22. Ba4 {[%clk 0:00:00.6]} 22... Rae8 {[%clk 0:00:24.6]} 0-1